fUSD/lending_fUSD_20260527
["ID","MTS","AMOUNT","RATE_DAILY","PERIOD"]
[423139284,1779886506000,291.0,0.00030137,10]
[423139285,1779886511000,2000.0,0.0003099,2]
[423139287,1779886532000,2000.0,0.0003099,2]
[423139289,1779886598000,166.66,0.00030923,30]
[423139298,1779886787000,9.38,0.0002681,2]
[423139297,1779886787000,174.53,0.0002681,2]
[423139296,1779886787000,183.91,0.00021448,2]
[423139295,1779886787000,183.91,0.00016086,2]
[423139301,1779886843000,501.0,0.00028,2]
[423139308,1779886938000,908.0,0.000309,5]
[423139316,1779887077000,203.55979943,0.000304,30]
[423139319,1779887158000,200.0,0.00030902,2]
[423139320,1779887212000,200.0,0.00030869,2]
[423139322,1779887248000,-250.0,0.00031413,2]
[423139323,1779887248000,-280.20867475,0.00031425,120]
[423139321,1779887248000,-160.7504,0.00031,2]
[423139324,1779887248000,-1658.95918944,0.0003145,120]
[423139325,1779887282000,2000.0,0.00030883,120]
[423139327,1779887289000,2399.99,0.00030863,2]
[423139326,1779887289000,2600.01,0.00030863,2]
[423139329,1779887343000,1358.42,0.00030865,2]
[423139330,1779887370000,-2336.668096,0.0003145,120]
[423139331,1779887423000,677.51,0.00030865,2]
[423139332,1779887428000,150.0,0.00029,2]
[423139362,1779887432000,-177.34932933,0.00031785,2]
[423139365,1779887432000,-500.0,0.00031785,2]
[423139368,1779887432000,-500.0,0.00031785,2]
[423139374,1779887432000,-500.0,0.00031785,2]
[423139371,1779887432000,-500.0,0.00031785,2]
[423139363,1779887432000,-500.0,0.00031785,2]
[423139369,1779887432000,-500.0,0.00031785,2]
[423139372,1779887432000,-500.0,0.00031785,2]
[423139377,1779887432000,-500.0,0.00031785,2]
[423139373,1779887432000,-500.0,0.00031785,2]
[423139370,1779887432000,-500.0,0.00031785,2]
[423139375,1779887432000,-500.0,0.00031785,2]
[423139366,1779887432000,-500.0,0.00031785,2]
[423139385,1779887432000,-500.0,0.00031785,2]
[423139378,1779887432000,-500.0,0.00031785,2]
[423139386,1779887432000,-43.22665439,0.00031785,2]
[423139367,1779887432000,-500.0,0.00031785,2]
[423139364,1779887432000,-500.0,0.00031785,2]
[423139361,1779887432000,-1000.0,0.00031785,2]
[423139350,1779887432000,-150.0,0.00031763,2]
[423139336,1779887432000,-335.43209493,0.00031453,2]
[423139338,1779887432000,-44.69459549,0.00031488,7]
[423139337,1779887432000,-150.0,0.00031488,7]
[423139340,1779887432000,-105.30540451,0.00031488,7]
[423139341,1779887432000,-150.0,0.00031488,7]
[423139343,1779887432000,-150.0,0.00031488,7]
[423139342,1779887432000,-150.0,0.00031488,7]
[423139359,1779887432000,-1676.0,0.00031784,2]
[423139345,1779887432000,-178.04024228,0.00031527,2]
[423139344,1779887432000,-481.79925587,0.000315,2]
[423139355,1779887432000,-462.52,0.00031776,10]
[423139351,1779887432000,-400.0,0.00031775,2]
[423139353,1779887432000,-1600.0,0.00031775,3]
[423139380,1779887432000,-500.0,0.00031785,2]
[423139357,1779887432000,-842.95,0.00031776,10]
[423139348,1779887432000,-150.0,0.00031647,7]
[423139346,1779887432000,-166.66,0.00031574,30]
[423139381,1779887432000,-500.0,0.00031785,2]
[423139376,1779887432000,-500.0,0.00031785,2]
[423139379,1779887432000,-500.0,0.00031785,2]
[423139412,1779887432000,-500.0,0.00031785,2]
[423139405,1779887432000,-500.0,0.00031785,2]
[423139408,1779887432000,-500.0,0.00031785,2]
[423139407,1779887432000,-500.0,0.00031785,2]
[423139410,1779887432000,-500.0,0.00031785,2]
[423139406,1779887432000,-500.0,0.00031785,2]
[423139409,1779887432000,-500.0,0.00031785,2]
[423139415,1779887432000,-500.0,0.00031785,2]
[423139416,1779887432000,-500.0,0.00031785,2]
[423139384,1779887432000,-500.0,0.00031785,2]
[423139413,1779887432000,-500.0,0.00031785,2]
[423139421,1779887432000,-14766.5306631,0.00031786,2]
[423139422,1779887432000,-80409.49216388,0.00031786,2]
[423139417,1779887432000,-500.0,0.00031785,2]
[423139420,1779887432000,-500.0,0.00031785,2]
[423139418,1779887432000,-500.0,0.00031785,2]
[423139419,1779887432000,-300.0,0.00031785,2]
[423139403,1779887432000,-500.0,0.00031785,2]
[423139401,1779887432000,-500.0,0.00031785,2]
[423139414,1779887432000,-500.0,0.00031785,2]
[423139402,1779887432000,-500.0,0.00031785,2]
[423139411,1779887432000,-500.0,0.00031785,2]
[423139383,1779887432000,-500.0,0.00031785,2]
[423139382,1779887432000,-500.0,0.00031785,2]
[423139398,1779887432000,-500.0,0.00031785,2]
[423139399,1779887432000,-500.0,0.00031785,2]
[423139389,1779887432000,-500.0,0.00031785,2]
[423139387,1779887432000,-369.21969267,0.00031785,2]
[423139390,1779887432000,-500.0,0.00031785,2]
[423139388,1779887432000,-500.0,0.00031785,2]
[423139393,1779887432000,-500.0,0.00031785,2]
[423139392,1779887432000,-500.0,0.00031785,2]
[423139396,1779887432000,-500.0,0.00031785,2]
[423139394,1779887432000,-500.0,0.00031785,2]
[423139395,1779887432000,-532.82859761,0.00031785,2]
[423139397,1779887432000,-500.0,0.00031785,2]
[423139400,1779887432000,-500.0,0.00031785,2]
[423139391,1779887432000,-500.0,0.00031785,2]
[423139404,1779887432000,-500.0,0.00031785,2]
[423139439,1779887438000,-210.02324152,0.00031796,2]
[423139449,1779887438000,-1852.42,0.00031941,2]
[423139450,1779887438000,-209.46,0.00031956,5]
[423139442,1779887438000,-150.0,0.00031806,7]
[423139441,1779887438000,-1000.0,0.00031804,120]
[423139444,1779887438000,-4229.0,0.00031837,2]
[423139446,1779887438000,-161.75,0.00031867,30]
[423139443,1779887438000,-19046.0,0.00031835,2]
[423139448,1779887438000,-3568.0,0.00031898,2]
[423139447,1779887438000,-24743.95109282,0.00031871,2]
[423139445,1779887438000,-7538.0,0.00031838,2]
[423139440,1779887438000,-12730.0,0.00031803,2]
[423139432,1779887438000,-3056.86693857,0.00031786,2]
[423139437,1779887438000,-1603.38993408,0.00031786,2]
[423139435,1779887438000,-322.79623592,0.00031786,2]
[423139436,1779887438000,-2480.69075194,0.00031786,2]
[423139434,1779887438000,-305.153193,0.00031786,2]
[423139431,1779887438000,-1209.2570823,0.00031786,2]
[423139433,1779887438000,-1968.28137891,0.00031786,2]
[423139429,1779887438000,-6696.46645834,0.00031786,2]
[423139430,1779887438000,-940.05201224,0.00031786,2]
[423139428,1779887438000,-1708.05318772,0.00031786,2]
[423139427,1779887438000,-702.46,0.00031776,10]
[423139452,1779887438000,-150.0,0.00031965,7]
[423139438,1779887438000,-289.97675848,0.00031796,2]
[423139462,1779887438000,-236.53093378,0.00032,120]
[423139476,1779887438000,-215.0,0.00032392,2]
[423139451,1779887438000,-477.78,0.00031963,2]
[423139453,1779887438000,-5930.05880044,0.00031965,2]
[423139485,1779887438000,-150.0,0.00032654,7]
[423139494,1779887438000,-500.0,0.00032792,2]
[423139491,1779887438000,-325.91907868,0.00032792,2]
[423139489,1779887438000,-150.0,0.0003276,7]
[423139493,1779887438000,-500.0,0.00032792,2]
[423139487,1779887438000,-150.0,0.00032654,7]
[423139479,1779887438000,-162.8,0.00032451,2]
[423139477,1779887438000,-208.97895572,0.00032426,2]
[423139475,1779887438000,-170.776,0.00032352,32]
[423139481,1779887438000,-24743.95109275,0.00032541,2]
[423139473,1779887438000,-150.0,0.00032283,7]
[423139471,1779887438000,-183.91,0.00032171,2]
[423139478,1779887438000,-150.0,0.00032442,7]
[423139470,1779887438000,-324.21,0.00032171,120]
[423139465,1779887438000,-244.82087554,0.00032,120]
[423139463,1779887438000,-189.7914631,0.00032,120]
[423139455,1779887438000,-263.34,0.00031971,120]
[423139460,1779887438000,-1371.92416085,0.00032,120]
[423139468,1779887438000,-150.0,0.00032078,2]
[423139457,1779887438000,-1704.63,0.00031993,2]
[423139469,1779887438000,-150.0,0.00032124,7]
[423139483,1779887438000,-150.0,0.00032601,7]
[423139472,1779887438000,-166.66,0.00032225,30]
[423139474,1779887438000,-1265.031,0.00032352,32]
[423139467,1779887438000,-500.0,0.00032059,2]
[423139576,1779887439000,-500.0,0.00033521,7]
[423139588,1779887439000,-500.0,0.00033521,2]
[423139578,1779887439000,-464.4985681,0.00033521,7]
[423139580,1779887439000,-500.0,0.00033521,2]
[423139572,1779887439000,-500.0,0.00033521,7]
[423139560,1779887439000,-300.0,0.00033521,10]
[423139570,1779887439000,-500.0,0.00033521,7]
[423139568,1779887439000,-195.84112978,0.00033521,120]
[423139564,1779887439000,-500.0,0.00033521,120]
[423139566,1779887439000,-416.16381479,0.00033521,30]
[423139586,1779887439000,-500.0,0.00033521,2]
[423139574,1779887439000,-500.0,0.00033521,7]
[423139584,1779887439000,-500.0,0.00033521,2]
[423139609,1779887439000,-200.3,0.00033538,7]
[423139590,1779887439000,-500.0,0.00033521,2]
[423139599,1779887439000,-151.0,0.0003353,7]
[423139601,1779887439000,-151.0,0.0003353,7]
[423139592,1779887439000,-1088.0,0.00033522,5]
[423139594,1779887439000,-250.0,0.00033522,30]
[423139597,1779887439000,-166.66,0.00033527,30]
[423139603,1779887439000,-202.08,0.00033538,7]
[423139605,1779887439000,-198.31,0.00033538,7]
[423139607,1779887439000,-204.62,0.00033538,7]
[423139611,1779887439000,-204.38,0.00033538,7]
[423139613,1779887439000,-213.07,0.00033538,7]
[423139562,1779887439000,-300.0,0.00033521,10]
[423139615,1779887439000,-150.0,0.00033555,7]
[423139582,1779887439000,-500.0,0.00033521,2]
[423139558,1779887439000,-300.0,0.00033521,10]
[423139535,1779887439000,-255.257614,0.00033203,21]
[423139555,1779887439000,-1544.0,0.00033503,7]
[423139620,1779887439000,-200.0,0.000337,12]
[423139498,1779887439000,-500.0,0.00032792,2]
[423139496,1779887439000,-192.06603794,0.00032792,2]
[423139500,1779887439000,-500.0,0.00032792,2]
[423139502,1779887439000,-159.21024882,0.00032792,2]
[423139508,1779887439000,-163.40581946,0.00032792,2]
[423139519,1779887439000,-1371.92416085,0.00033,120]
[423139510,1779887439000,-500.0,0.00032792,2]
[423139523,1779887439000,-189.7914631,0.00033,120]
[423139515,1779887439000,-166.66,0.00032876,30]
[423139521,1779887439000,-236.53093378,0.00033,120]
[423139527,1779887439000,-166.66,0.00033137,2]
[423139517,1779887439000,-150.0,0.00032919,7]
[423139556,1779887439000,-1544.0,0.00033503,7]
[423139512,1779887439000,-1704.63,0.00032793,2]
[423139529,1779887439000,-4358.4700375,0.00033137,2]
[423139533,1779887439000,-255.257614,0.00033203,21]
[423139531,1779887439000,-3620.4191377,0.00033162,2]
[423139545,1779887439000,-150.0,0.00033396,7]
[423139543,1779887439000,-191.10191603,0.00033354,2]
[423139541,1779887439000,-401.8380347,0.00033335,2]
[423139537,1779887439000,-24743.95109275,0.00033211,2]
[423139539,1779887439000,-150.0,0.00033237,7]
[423139547,1779887439000,-21352.26108202,0.00033403,2]
[423139549,1779887439000,-624.37765729,0.00033422,2]
[423139551,1779887439000,-368.69231298,0.00033423,2]
[423139553,1779887439000,-638.50423739,0.00033427,2]
[423139554,1779887439000,-48192.37854246,0.00033464,2]
[423139525,1779887439000,-150.0,0.00033078,7]
[423139617,1779887439000,-1704.63,0.00033593,2]
[423139702,1779887439000,-500.0,0.00034542,10]
[423139622,1779887439000,-150.0,0.00033714,7]
[423139686,1779887439000,-500.0,0.00034417,2]
[423139698,1779887439000,-150.0,0.00034542,10]
[423139700,1779887439000,-152.7915746,0.00034542,10]
[423139696,1779887439000,-150.0,0.00034542,10]
[423139691,1779887439000,-250.0,0.0003454,2]
[423139690,1779887439000,-150.0,0.00034509,7]
[423139704,1779887439000,-500.0,0.00034542,10]
[423139708,1779887439000,-500.0,0.00034542,10]
[423139706,1779887439000,-150.0,0.00034542,10]
[423139710,1779887439000,-289.47724845,0.00034542,10]
[423139712,1779887439000,-500.0,0.00034542,10]
[423139718,1779887439000,-500.0,0.00034542,10]
[423139720,1779887439000,-500.0,0.00034542,10]
[423139716,1779887439000,-452.0,0.00034542,10]
[423139723,1779887439000,-500.0,0.00034542,10]
[423139725,1779887439000,-601.09886778,0.00034542,10]
[423139734,1779887439000,-150.0,0.00034542,10]
[423139731,1779887439000,-500.0,0.00034542,10]
[423139727,1779887439000,-150.0,0.00034542,10]
[423139732,1779887439000,-150.0,0.00034542,10]
[423139733,1779887439000,-500.0,0.00034542,10]
[423139729,1779887439000,-150.0,0.00034542,10]
[423139736,1779887439000,-500.0,0.00034542,10]
[423139737,1779887439000,-150.0,0.00034542,10]
[423139740,1779887439000,-150.0,0.00034542,10]
[423139626,1779887439000,-400.0,0.000338,12]
[423139741,1779887439000,-500.0,0.00034542,10]
[423139687,1779887439000,-471.2104,0.00034442,120]
[423139693,1779887439000,-244.82538177,0.00034542,10]
[423139714,1779887439000,-500.0,0.00034542,10]
[423139682,1779887439000,-1704.63,0.00034393,2]
[423139628,1779887439000,-150.0,0.0003382,7]
[423139624,1779887439000,-178.89070209,0.00033786,2]
[423139684,1779887439000,-368.69231296,0.0003441,2]
[423139630,1779887439000,-150.0,0.0003382,7]
[423139632,1779887439000,-299.99,0.00033844,30]
[423139642,1779887439000,-9999.99,0.00033844,2]
[423139644,1779887439000,-17005.41,0.00033844,2]
[423139650,1779887439000,-150.0,0.00033873,7]
[423139634,1779887439000,-9999.99,0.00033844,2]
[423139646,1779887439000,-9999.99,0.00033844,2]
[423139636,1779887439000,-9999.99,0.00033844,2]
[423139652,1779887439000,-24743.95109275,0.00033881,2]
[423139654,1779887439000,-1371.92416085,0.000339,120]
[423139640,1779887439000,-150.99,0.00033844,2]
[423139638,1779887439000,-4999.99,0.00033844,30]
[423139648,1779887439000,-999.99,0.00033844,10]
[423139678,1779887439000,-2240.0,0.00034325,3]
[423139664,1779887439000,-4358.47003748,0.00034025,2]
[423139656,1779887439000,-236.53093378,0.000339,120]
[423139662,1779887439000,-21352.26108193,0.00033992,2]
[423139666,1779887439000,-150.0,0.00034032,7]
[423139660,1779887439000,-600.0,0.000339,12]
[423139676,1779887439000,-151.0,0.00034247,90]
[423139672,1779887439000,-150.0,0.00034191,7]
[423139670,1779887439000,-560.0,0.00034184,2]
[423139668,1779887439000,-166.66,0.00034178,30]
[423139658,1779887439000,-189.7914631,0.000339,120]
[423139675,1779887439000,-166.66,0.0003423,2]
[423139680,1779887439000,-150.0,0.0003435,7]
[423139816,1779887440000,-200.0,0.00034542,10]
[423139822,1779887440000,-500.0,0.00034542,10]
[423139832,1779887440000,-500.0,0.00034542,10]
[423139824,1779887440000,-366.55431461,0.00034542,2]
[423139830,1779887440000,-218.39893225,0.00034542,10]
[423139813,1779887440000,-500.0,0.00034542,2]
[423139836,1779887440000,-180.65416299,0.00034542,10]
[423139834,1779887440000,-150.0,0.00034542,10]
[423139812,1779887440000,-500.0,0.00034542,10]
[423139809,1779887440000,-150.0,0.00034542,10]
[423139820,1779887440000,-500.0,0.00034542,2]
[423139829,1779887440000,-500.0,0.00034542,10]
[423139818,1779887440000,-500.0,0.00034542,10]
[423139865,1779887440000,-500.0,0.00034542,10]
[423139838,1779887440000,-164.66146701,0.00034542,10]
[423139842,1779887440000,-500.0,0.00034542,10]
[423139840,1779887440000,-267.19449444,0.00034542,10]
[423139845,1779887440000,-500.0,0.00034542,10]
[423139846,1779887440000,-500.0,0.00034542,10]
[423139848,1779887440000,-500.0,0.00034542,10]
[423139854,1779887440000,-500.0,0.00034542,10]
[423139858,1779887440000,-500.0,0.00034542,10]
[423139850,1779887440000,-500.0,0.00034542,10]
[423139856,1779887440000,-500.000001,0.00034542,10]
[423139852,1779887440000,-500.0,0.00034542,10]
[423139861,1779887440000,-500.0,0.00034542,10]
[423139807,1779887440000,-500.0,0.00034542,2]
[423139870,1779887440000,-150.0,0.00034542,10]
[423139827,1779887440000,-168.0,0.00034542,10]
[423139791,1779887440000,-531.57193254,0.00034542,10]
[423139749,1779887440000,-500.0,0.00034542,10]
[423139805,1779887440000,-500.0,0.00034542,10]
[423139868,1779887440000,-150.0,0.00034542,10]
[423139747,1779887440000,-500.0,0.00034542,10]
[423139754,1779887440000,-500.0,0.00034542,10]
[423139752,1779887440000,-500.0,0.00034542,10]
[423139743,1779887440000,-500.0,0.00034542,10]
[423139745,1779887440000,-250.0,0.00034542,10]
[423139758,1779887440000,-500.0,0.00034542,10]
[423139759,1779887440000,-242.77531095,0.00034542,10]
[423139756,1779887440000,-500.0,0.00034542,10]
[423139762,1779887440000,-500.0,0.00034542,10]
[423139771,1779887440000,-500.0,0.00034542,10]
[423139773,1779887440000,-500.0,0.00034542,10]
[423139775,1779887440000,-500.0,0.00034542,10]
[423139763,1779887440000,-500.0,0.00034542,10]
[423139779,1779887440000,-500.0,0.00034542,10]
[423139783,1779887440000,-500.0,0.00034542,10]
[423139765,1779887440000,-381.68311281,0.00034542,10]
[423139777,1779887440000,-500.0,0.00034542,10]
[423139781,1779887440000,-500.0,0.00034542,10]
[423139768,1779887440000,-500.0,0.00034542,10]
[423139769,1779887440000,-508.00396675,0.00034542,10]
[423139785,1779887440000,-500.0,0.00034542,10]
[423139798,1779887440000,-150.0,0.00034542,10]
[423139787,1779887440000,-500.0,0.00034542,10]
[423139799,1779887440000,-500.0,0.00034542,2]
[423139801,1779887440000,-500.0,0.00034542,10]
[423139790,1779887440000,-500.0,0.00034542,10]
[423139803,1779887440000,-500.0,0.00034542,2]
[423139795,1779887440000,-500.0,0.00034542,10]
[423139794,1779887440000,-150.0,0.00034542,2]
[423139872,1779887440000,-150.0,0.00034542,10]
[423139954,1779887440000,-162.8,0.00035156,2]
[423139880,1779887440000,-24743.95109275,0.00034551,2]
[423139931,1779887440000,-150.0,0.00034986,7]
[423139948,1779887440000,-189.7914631,0.00035,120]
[423139933,1779887440000,-194.75261827,0.00034986,7]
[423139950,1779887440000,-1000000.0,0.00035,30]
[423139952,1779887440000,-171.84,0.0003513,30]
[423139961,1779887440000,-24743.95109275,0.0003522,2]
[423139956,1779887440000,-21352.26108193,0.00035169,2]
[423139963,1779887440000,-166.66,0.00035324,2]
[423139964,1779887440000,-368.69231296,0.00035397,2]
[423139968,1779887440000,-300.0,0.00035514,2]
[423139966,1779887440000,-250.0,0.00035508,7]
[423139958,1779887440000,-1704.63,0.00035192,2]
[423139973,1779887440000,-300.0,0.00035514,2]
[423139927,1779887440000,-4358.47003748,0.00034914,2]
[423139971,1779887440000,-1096.2926835,0.00035514,2]
[423139979,1779887440000,-300.0,0.00035514,2]
[423139983,1779887440000,-300.0,0.00035514,2]
[423139985,1779887440000,-300.0,0.00035514,2]
[423139981,1779887440000,-300.0,0.00035514,2]
[423139977,1779887440000,-300.0,0.00035514,2]
[423139991,1779887440000,-300.0,0.00035514,2]
[423139986,1779887440000,-300.0,0.00035514,2]
[423139989,1779887440000,-300.0,0.00035514,2]
[423139994,1779887440000,-493.38669858,0.00035514,2]
[423139996,1779887440000,-300.0,0.00035514,2]
[423139993,1779887440000,-300.0,0.00035514,2]
[423139998,1779887440000,-300.0,0.00035514,2]
[423140000,1779887440000,-605.31118564,0.00035514,2]
[423139975,1779887440000,-300.0,0.00035514,2]
[423139944,1779887440000,-1371.92416085,0.00035,120]
[423140003,1779887440000,-300.0,0.00035514,2]
[423139928,1779887440000,-150.0,0.00034986,7]
[423139946,1779887440000,-236.53093378,0.00035,120]
[423139878,1779887440000,-184.48877466,0.00034542,10]
[423139883,1779887440000,-21352.26108193,0.0003458,2]
[423139885,1779887440000,-2000.0,0.00034589,2]
[423139874,1779887440000,-150.0,0.00034542,10]
[423139886,1779887440000,-250.0,0.00034595,2]
[423139891,1779887440000,-300.0,0.00034648,10]
[423139889,1779887440000,-300.0,0.00034648,10]
[423139893,1779887440000,-300.0,0.00034648,10]
[423139895,1779887440000,-150.0,0.00034668,7]
[423139897,1779887440000,-2000.0,0.00034743,120]
[423139899,1779887440000,-555.06801264,0.00034799,120]
[423139907,1779887440000,-500.0,0.00034799,120]
[423139909,1779887440000,-500.0,0.00034799,120]
[423139913,1779887440000,-500.0,0.00034799,120]
[423139876,1779887440000,-150.0,0.00034542,10]
[423139911,1779887440000,-500.0,0.00034799,120]
[423139915,1779887440000,-456.79764672,0.00034799,120]
[423139942,1779887440000,-300.0,0.00034999,10]
[423139938,1779887440000,-196.81573323,0.0003499,2]
[423139935,1779887440000,-150.0,0.00034986,7]
[423139940,1779887440000,-300.0,0.00034999,10]
[423139925,1779887440000,-900.0,0.000349,12]
[423139936,1779887440000,-256.31017686,0.00034986,7]
[423139918,1779887440000,-500.0,0.00034799,120]
[423139921,1779887440000,-248.08,0.00034799,120]
[423139917,1779887440000,-500.0,0.00034799,120]
[423139905,1779887440000,-212.20707599,0.00034799,7]
[423139901,1779887440000,-500.0,0.00034799,7]
[423139903,1779887440000,-500.0,0.00034799,7]
[423139922,1779887440000,-150.0,0.00034827,7]
[423140087,1779887441000,-300.0,0.00035514,2]
[423140080,1779887441000,-300.0,0.00035514,2]
[423140091,1779887441000,-300.0,0.00035514,2]
[423140073,1779887441000,-464.48677942,0.00035514,2]
[423140076,1779887441000,-578.28315025,0.00035514,2]
[423140060,1779887441000,-300.0,0.00035514,2]
[423140063,1779887441000,-300.0,0.00035514,2]
[423140068,1779887441000,-300.0,0.00035514,2]
[423140064,1779887441000,-300.0,0.00035514,2]
[423140062,1779887441000,-300.0,0.00035514,2]
[423140066,1779887441000,-594.79850986,0.00035514,2]
[423140083,1779887441000,-300.0,0.00035514,2]
[423140106,1779887441000,-300.0,0.00035514,2]
[423140089,1779887441000,-300.0,0.00035514,2]
[423140074,1779887441000,-300.0,0.00035514,2]
[423140070,1779887441000,-300.0,0.00035514,2]
[423140078,1779887441000,-452.52893397,0.00035514,2]
[423140093,1779887441000,-300.0,0.00035514,2]
[423140057,1779887441000,-1148.83589152,0.00035514,2]
[423140108,1779887441000,-313.10763464,0.00035514,2]
[423140110,1779887441000,-1096.2926835,0.00035514,2]
[423140112,1779887441000,-300.0,0.00035514,2]
[423140097,1779887441000,-310.28230408,0.00035514,2]
[423140114,1779887441000,-300.0,0.00035514,2]
[423140095,1779887441000,-484.76763572,0.00035514,2]
[423140100,1779887441000,-300.0,0.00035514,2]
[423140104,1779887441000,-300.0,0.00035514,2]
[423140085,1779887441000,-300.0,0.00035514,2]
[423140059,1779887441000,-300.0,0.00035514,2]
[423140034,1779887441000,-300.0,0.00035514,2]
[423140058,1779887441000,-310.02493426,0.00035514,2]
[423140116,1779887441000,-300.0,0.00035514,2]
[423140012,1779887441000,-1068.40163352,0.00035514,2]
[423140016,1779887441000,-727.07827244,0.00035514,2]
[423140005,1779887441000,-300.0,0.00035514,2]
[423140009,1779887441000,-300.0,0.00035514,2]
[423140015,1779887441000,-894.65434383,0.00035514,2]
[423140007,1779887441000,-300.0,0.00035514,2]
[423140011,1779887441000,-528.48327171,0.00035514,2]
[423140018,1779887441000,-300.0,0.00035514,2]
[423140022,1779887441000,-300.0,0.00035514,2]
[423140026,1779887441000,-300.99795142,0.00035514,2]
[423140021,1779887441000,-302.21937029,0.00035514,2]
[423140024,1779887441000,-300.0,0.00035514,2]
[423140061,1779887441000,-1634.44392223,0.00035514,2]
[423140041,1779887441000,-1263.96825586,0.00035514,2]
[423140028,1779887441000,-300.0,0.00035514,2]
[423140031,1779887441000,-300.0,0.00035514,2]
[423140043,1779887441000,-344.45437934,0.00035514,2]
[423140037,1779887441000,-300.0,0.00035514,2]
[423140051,1779887441000,-300.0,0.00035514,2]
[423140032,1779887441000,-300.0,0.00035514,2]
[423140038,1779887441000,-300.0,0.00035514,2]
[423140049,1779887441000,-300.0,0.00035514,2]
[423140050,1779887441000,-300.0,0.00035514,2]
[423140052,1779887441000,-865.6208675,0.00035514,2]
[423140054,1779887441000,-950.32029804,0.00035514,2]
[423140055,1779887441000,-300.09384644,0.00035514,2]
[423140056,1779887441000,-300.0,0.00035514,2]
[423140047,1779887441000,-527.62572404,0.00035514,2]
[423140045,1779887441000,-372.88318182,0.00035514,2]
[423140101,1779887441000,-300.0,0.00035514,2]
[423140120,1779887441000,-300.0,0.00035514,2]
[423140179,1779887441000,-300.0,0.00035514,2]
[423140180,1779887441000,-300.0,0.00035514,2]
[423140178,1779887441000,-300.99795142,0.00035514,2]
[423140176,1779887441000,-300.0,0.00035514,2]
[423140188,1779887441000,-527.62572404,0.00035514,2]
[423140187,1779887441000,-344.45437934,0.00035514,2]
[423140198,1779887441000,-300.0,0.00035514,2]
[423140199,1779887441000,-1148.83589152,0.00035514,2]
[423140189,1779887441000,-300.0,0.00035514,2]
[423140191,1779887441000,-300.0,0.00035514,2]
[423140196,1779887441000,-950.32029804,0.00035514,2]
[423140192,1779887441000,-300.0,0.00035514,2]
[423140190,1779887441000,-300.0,0.00035514,2]
[423140173,1779887441000,-302.21937029,0.00035514,2]
[423140195,1779887441000,-865.6208675,0.00035514,2]
[423140203,1779887441000,-1634.44392223,0.00035514,2]
[423140205,1779887441000,-300.0,0.00035514,2]
[423140201,1779887441000,-300.0,0.00035514,2]
[423140202,1779887441000,-300.0,0.00035514,2]
[423140209,1779887441000,-300.0,0.00035514,2]
[423140207,1779887441000,-300.0,0.00035514,2]
[423140220,1779887441000,-300.0,0.00035514,2]
[423140212,1779887441000,-594.79850986,0.00035514,2]
[423140218,1779887441000,-464.48677942,0.00035514,2]
[423140222,1779887441000,-578.28315025,0.00035514,2]
[423140214,1779887441000,-300.0,0.00035514,2]
[423140216,1779887441000,-300.0,0.00035514,2]
[423140118,1779887441000,-300.0,0.00035514,2]
[423140200,1779887441000,-310.02493426,0.00035514,2]